{"text_format":"1","workbook":"xlsx","n_sheets":11,"sheets":["INSTRUCTIONS","DASHBOARD","LOG","Current Stock Med Air vs Usage","Stock","Stock Use Per Location","Stock Check to Order","Cylinders","Locations","Current Stock Oxygen vs Usage","Stock Audit"],"not_rendered":{"charts":5,"images":3,"macros":1,"external_links":1,"defined_names":12,"comments":0,"pivot_tables":7},"unopened":[],"bounds":{"document_bytes":16777216,"sheet_cells":100000,"rows_first":2000,"rows_last":500,"rows_between":2000,"halvings":0,"cell_chars":16384,"cell_head_chars":4096},"cells_cut":0,"cells_raw":0,"read":"whole","date_system":"1900"}

{"sheet":"INSTRUCTIONS","index":0,"n_rows":1,"n_cols":1,"rows_kept":1,"cut":false,"hidden":false,"merged":[[38,0,38,3],[39,0,39,3],[31,0,31,3],[32,0,32,3],[33,0,33,3],[34,0,34,3],[35,0,35,3],[37,0,37,3],[24,0,24,3],[25,0,25,3],[26,0,26,3],[27,0,27,3],[28,0,28,3],[29,0,29,3],[18,0,18,3],[19,0,19,3],[20,0,20,3],[21,0,21,3],[22,0,22,3],[23,0,23,3],[12,0,12,3],[13,0,13,3],[14,0,14,3],[15,0,15,3],[16,0,16,3],[17,0,17,3],[0,0,0,3],[1,0,1,3],[3,0,3,3],[6,0,6,3],[7,0,7,3],[10,0,10,3]]}
["DOUBLE CLICK BELOW TO OPEN INSTRUCTIONS"]

{"sheet":"DASHBOARD","index":1,"n_rows":43,"n_cols":50,"rows_kept":43,"cut":false,"hidden":false,"merged":[]}
[]
[]
[]
[]
[]
[null,"Row Labels","Item","Current (Cyl)","Current (Ltrs)","To Order"]
[null,"Oxygen","Oxy PD4C",0,0,{"$f":"IF(D7=\"\",\"\",IF(VLOOKUP(C7,Cylinders!A:D,3,FALSE)>D7,VLOOKUP(C7,Cylinders!A:D,3,FALSE)-D7,0))","v":0}]
[null,null,"Oxy E",0,0,{"$f":"IF(D8=\"\",\"\",IF(VLOOKUP(C8,Cylinders!A:D,3,FALSE)>D8,VLOOKUP(C8,Cylinders!A:D,3,FALSE)-D8,0))","v":0}]
[null,null,"Oxy F4",0,0,{"$f":"IF(D9=\"\",\"\",IF(VLOOKUP(C9,Cylinders!A:D,3,FALSE)>D9,VLOOKUP(C9,Cylinders!A:D,3,FALSE)-D9,0))","v":0},null,null,null,null,null,null,null,null,null,null,null,null,null,null,null,null,null,null,null,null,null,null,null,null,null,null,null,null,null,null,null,null,null,null,null,null,"Action","Opening Stock"]
[null,null,"Oxy F4C1T",0,0,{"$f":"IF(D10=\"\",\"\",IF(VLOOKUP(C10,Cylinders!A:D,3,FALSE)>D10,VLOOKUP(C10,Cylinders!A:D,3,FALSE)-D10,0))","v":0}]
[null,null,"Oxy G",0,0,{"$f":"IF(D11=\"\",\"\",IF(VLOOKUP(C11,Cylinders!A:D,3,FALSE)>D11,VLOOKUP(C11,Cylinders!A:D,3,FALSE)-D11,0))","v":0},null,null,null,null,null,null,null,null,null,null,null,null,null,null,null,null,null,null,null,null,null,null,null,null,null,null,null,null,null,null,null,null,null,null,null,null,"Sum of Total Cap (Ltr)","Column Labels"]
[null,null,"Oxy SJ",0,0,{"$f":"IF(D12=\"\",\"\",IF(VLOOKUP(C12,Cylinders!A:D,3,FALSE)>D12,VLOOKUP(C12,Cylinders!A:D,3,FALSE)-D12,0))","v":0},null,null,null,null,null,null,null,null,null,null,null,null,null,null,null,null,null,null,null,null,null,null,null,null,null,null,null,null,null,null,null,null,null,null,null,null,"Row Labels","CO2","Medical Air","Nitrous Oxide","Oxygen","Entonox","Helium","Grand Total"]
[null,null,"Oxy CD",0,0,{"$f":"IF(D13=\"\",\"\",IF(VLOOKUP(C13,Cylinders!A:D,3,FALSE)>D13,VLOOKUP(C13,Cylinders!A:D,3,FALSE)-D13,0))","v":0},null,null,null,null,null,null,null,null,null,null,null,null,null,null,null,null,null,null,null,null,null,null,null,null,null,null,null,null,null,null,null,null,null,null,null,null,"2020-04-20",0,0,0,0,0,0,0]
[null,null,"Oxy D",0,0,{"$f":"IF(D14=\"\",\"\",IF(VLOOKUP(C14,Cylinders!A:D,3,FALSE)>D14,VLOOKUP(C14,Cylinders!A:D,3,FALSE)-D14,0))","v":0},null,null,null,null,null,null,null,null,null,null,null,null,null,null,null,null,null,null,null,null,null,null,null,null,null,null,null,null,null,null,null,null,null,null,null,null,"Grand Total",0,0,0,0,0,0,0]
[null,null,"Oxy HX",0,0,{"$f":"IF(D15=\"\",\"\",IF(VLOOKUP(C15,Cylinders!A:D,3,FALSE)>D15,VLOOKUP(C15,Cylinders!A:D,3,FALSE)-D15,0))","v":0}]
[null,null,"Oxy J",0,0,{"$f":"IF(D16=\"\",\"\",IF(VLOOKUP(C16,Cylinders!A:D,3,FALSE)>D16,VLOOKUP(C16,Cylinders!A:D,3,FALSE)-D16,0))","v":0}]
[null,"Medical Air","Air E",0,0,{"$f":"IF(D17=\"\",\"\",IF(VLOOKUP(C17,Cylinders!A:D,3,FALSE)>D17,VLOOKUP(C17,Cylinders!A:D,3,FALSE)-D17,0))","v":0}]
[null,null,"Air F",0,0,{"$f":"IF(D18=\"\",\"\",IF(VLOOKUP(C18,Cylinders!A:D,3,FALSE)>D18,VLOOKUP(C18,Cylinders!A:D,3,FALSE)-D18,0))","v":0}]
[null,null,"Air G",0,0,{"$f":"IF(D19=\"\",\"\",IF(VLOOKUP(C19,Cylinders!A:D,3,FALSE)>D19,VLOOKUP(C19,Cylinders!A:D,3,FALSE)-D19,0))","v":0}]
[null,null,"Air SJ",0,0,{"$f":"IF(D20=\"\",\"\",IF(VLOOKUP(C20,Cylinders!A:D,3,FALSE)>D20,VLOOKUP(C20,Cylinders!A:D,3,FALSE)-D20,0))","v":0}]
[null,null,"Air J",0,0,{"$f":"IF(D21=\"\",\"\",IF(VLOOKUP(C21,Cylinders!A:D,3,FALSE)>D21,VLOOKUP(C21,Cylinders!A:D,3,FALSE)-D21,0))","v":0}]
[null,"CO2","CO2 C",0,0,{"$f":"IF(D22=\"\",\"\",IF(VLOOKUP(C22,Cylinders!A:D,3,FALSE)>D22,VLOOKUP(C22,Cylinders!A:D,3,FALSE)-D22,0))","v":0}]
[null,null,"CO2 E",0,0,{"$f":"IF(D23=\"\",\"\",IF(VLOOKUP(C23,Cylinders!A:D,3,FALSE)>D23,VLOOKUP(C23,Cylinders!A:D,3,FALSE)-D23,0))","v":0}]
[null,null,"CO2 VF",0,0,{"$f":"IF(D24=\"\",\"\",IF(VLOOKUP(C24,Cylinders!A:D,3,FALSE)>D24,VLOOKUP(C24,Cylinders!A:D,3,FALSE)-D24,0))","v":0}]
[null,null,"CO2 VK",0,0,{"$f":"IF(D25=\"\",\"\",IF(VLOOKUP(C25,Cylinders!A:D,3,FALSE)>D25,VLOOKUP(C25,Cylinders!A:D,3,FALSE)-D25,0))","v":0}]
[null,"Nitrous Oxide","Nitrous E",0,0,{"$f":"IF(D26=\"\",\"\",IF(VLOOKUP(C26,Cylinders!A:D,3,FALSE)>D26,VLOOKUP(C26,Cylinders!A:D,3,FALSE)-D26,0))","v":0}]
[null,null,"Nitrous F",0,0,{"$f":"IF(D27=\"\",\"\",IF(VLOOKUP(C27,Cylinders!A:D,3,FALSE)>D27,VLOOKUP(C27,Cylinders!A:D,3,FALSE)-D27,0))","v":0}]
[null,null,"Nitrous G",0,0,{"$f":"IF(D28=\"\",\"\",IF(VLOOKUP(C28,Cylinders!A:D,3,FALSE)>D28,VLOOKUP(C28,Cylinders!A:D,3,FALSE)-D28,0))","v":0}]
[null,"Entonox","Equinox AD",0,0,{"$f":"IF(D29=\"\",\"\",IF(VLOOKUP(C29,Cylinders!A:D,3,FALSE)>D29,VLOOKUP(C29,Cylinders!A:D,3,FALSE)-D29,0))","v":0}]
[null,null,"Equinox F",0,0,{"$f":"IF(D30=\"\",\"\",IF(VLOOKUP(C30,Cylinders!A:D,3,FALSE)>D30,VLOOKUP(C30,Cylinders!A:D,3,FALSE)-D30,0))","v":0}]
[null,null,"Equinox G",0,0,{"$f":"IF(D31=\"\",\"\",IF(VLOOKUP(C31,Cylinders!A:D,3,FALSE)>D31,VLOOKUP(C31,Cylinders!A:D,3,FALSE)-D31,0))","v":0}]
[null,null,"Equinox D",0,0,{"$f":"IF(D32=\"\",\"\",IF(VLOOKUP(C32,Cylinders!A:D,3,FALSE)>D32,VLOOKUP(C32,Cylinders!A:D,3,FALSE)-D32,0))","v":0}]
[null,null,"Equinox ED",0,0,{"$f":"IF(D33=\"\",\"\",IF(VLOOKUP(C33,Cylinders!A:D,3,FALSE)>D33,VLOOKUP(C33,Cylinders!A:D,3,FALSE)-D33,0))","v":0}]
[null,null,"Equinox EX",0,0,{"$f":"IF(D34=\"\",\"\",IF(VLOOKUP(C34,Cylinders!A:D,3,FALSE)>D34,VLOOKUP(C34,Cylinders!A:D,3,FALSE)-D34,0))","v":0}]
[null,"Helium","Helium F",0,0,{"$f":"IF(D35=\"\",\"\",IF(VLOOKUP(C35,Cylinders!A:D,3,FALSE)>D35,VLOOKUP(C35,Cylinders!A:D,3,FALSE)-D35,0))","v":0}]
[null,null,null,null,null,{"$f":"IF(D36=\"\",\"\",IF(VLOOKUP(C36,Cylinders!A:D,3,FALSE)>D36,VLOOKUP(C36,Cylinders!A:D,3,FALSE)-D36,0))","v":""}]
[null,null,null,null,null,{"$f":"IF(D37=\"\",\"\",IF(VLOOKUP(C37,Cylinders!A:D,3,FALSE)>D37,VLOOKUP(C37,Cylinders!A:D,3,FALSE)-D37,0))","v":""}]
[null,null,null,null,null,{"$f":"IF(D38=\"\",\"\",IF(VLOOKUP(C38,Cylinders!A:D,3,FALSE)>D38,VLOOKUP(C38,Cylinders!A:D,3,FALSE)-D38,0))","v":""}]
[null,null,null,null,null,{"$f":"IF(D39=\"\",\"\",IF(VLOOKUP(C39,Cylinders!A:D,3,FALSE)>D39,VLOOKUP(C39,Cylinders!A:D,3,FALSE)-D39,0))","v":""}]
[]
[]
[]
[null,null,null,null,null,null,null,"w/c:",{"$f":"'Current Stock Oxygen vs Usage'!C1","v":"(All)"},null,null,null,null,null,"w/c:",{"$f":"'Current Stock Med Air vs Usage'!C1","v":"(All)"}]

{"sheet":"LOG","index":2,"n_rows":42,"n_cols":13,"rows_kept":42,"cut":false,"hidden":false,"merged":[]}
["Date","Week Commencing","Action","Item","Location","Quantity","Cyl Cap (Ltr)","Total Cap (Ltr)","Stock Move","Capacity Move (Ltr)","Issue","Current Stock","Gas Type"]
["2020-04-22",{"$f":"IF(Table1[[#This Row],[Date]]=\"\",\"\",Table1[[#This Row],[Date]]-WEEKDAY(Table1[[#This Row],[Date]],2)+1)","v":"2020-04-20"},"Opening Stock","Oxy PD4C","Stock",0,{"$f":"IF(Table1[[#This Row],[Item]]=\"\",\"\",VLOOKUP(Table1[[#This Row],[Item]],Cylinders!A:B,2,FALSE))","v":430},{"$f":"IF(Table1[[#This Row],[Cyl Cap (Ltr)]]=\"\",\"\",Table1[[#This Row],[Cyl Cap (Ltr)]]*Table1[[#This Row],[Quantity]])","v":0},{"$f":"IF(IF(Table1[[#This Row],[Action]]=\"Issue\",Table1[[#This Row],[Quantity]]*-1,Table1[[#This Row],[Quantity]])=0,IF(Table1[[#This Row],[Quantity]]<>\"\",0,\"\"),IF(Table1[[#This Row],[Action]]=\"Issue\",Table1[[#This Row],[Quantity]]*-1,Table1[[#This Row],[Quantity]]))","v":0},{"$f":"IF(Table1[[#This Row],[Cyl Cap (Ltr)]]=\"\",\"\",Table1[[#This Row],[Cyl Cap (Ltr)]]*Table1[[#This Row],[Stock Move]])","v":0},{"$f":"IF(Table1[[#This Row],[Action]]=\"Issue\",Table1[[#This Row],[Quantity]],0)","v":0},{"$f":"SUMIF(D:D,Table1[[#This Row],[Item]],I:I)","v":0},{"$f":"IF(Table1[[#This Row],[Item]]=\"\",\"\",VLOOKUP(Table1[[#This Row],[Item]],Cylinders!A:D,4,FALSE))","v":"Oxygen"}]
["2020-04-22",{"$f":"IF(Table1[[#This Row],[Date]]=\"\",\"\",Table1[[#This Row],[Date]]-WEEKDAY(Table1[[#This Row],[Date]],2)+1)","v":"2020-04-20"},"Opening Stock","Oxy CD","Stock",0,{"$f":"IF(Table1[[#This Row],[Item]]=\"\",\"\",VLOOKUP(Table1[[#This Row],[Item]],Cylinders!A:B,2,FALSE))","v":460},{"$f":"IF(Table1[[#This Row],[Cyl Cap (Ltr)]]=\"\",\"\",Table1[[#This Row],[Cyl Cap (Ltr)]]*Table1[[#This Row],[Quantity]])","v":0},{"$f":"IF(IF(Table1[[#This Row],[Action]]=\"Issue\",Table1[[#This Row],[Quantity]]*-1,Table1[[#This Row],[Quantity]])=0,IF(Table1[[#This Row],[Quantity]]<>\"\",0,\"\"),IF(Table1[[#This Row],[Action]]=\"Issue\",Table1[[#This Row],[Quantity]]*-1,Table1[[#This Row],[Quantity]]))","v":0},{"$f":"IF(Table1[[#This Row],[Cyl Cap (Ltr)]]=\"\",\"\",Table1[[#This Row],[Cyl Cap (Ltr)]]*Table1[[#This Row],[Stock Move]])","v":0},{"$f":"IF(Table1[[#This Row],[Action]]=\"Issue\",Table1[[#This Row],[Quantity]],0)","v":0},{"$f":"SUMIF(D:D,Table1[[#This Row],[Item]],I:I)","v":0},{"$f":"IF(Table1[[#This Row],[Item]]=\"\",\"\",VLOOKUP(Table1[[#This Row],[Item]],Cylinders!A:D,4,FALSE))","v":"Oxygen"}]
["2020-04-22",{"$f":"IF(Table1[[#This Row],[Date]]=\"\",\"\",Table1[[#This Row],[Date]]-WEEKDAY(Table1[[#This Row],[Date]],2)+1)","v":"2020-04-20"},"Opening Stock","Oxy D","Stock",0,{"$f":"IF(Table1[[#This Row],[Item]]=\"\",\"\",VLOOKUP(Table1[[#This Row],[Item]],Cylinders!A:B,2,FALSE))","v":340},{"$f":"IF(Table1[[#This Row],[Cyl Cap (Ltr)]]=\"\",\"\",Table1[[#This Row],[Cyl Cap (Ltr)]]*Table1[[#This Row],[Quantity]])","v":0},{"$f":"IF(IF(Table1[[#This Row],[Action]]=\"Issue\",Table1[[#This Row],[Quantity]]*-1,Table1[[#This Row],[Quantity]])=0,IF(Table1[[#This Row],[Quantity]]<>\"\",0,\"\"),IF(Table1[[#This Row],[Action]]=\"Issue\",Table1[[#This Row],[Quantity]]*-1,Table1[[#This Row],[Quantity]]))","v":0},{"$f":"IF(Table1[[#This Row],[Cyl Cap (Ltr)]]=\"\",\"\",Table1[[#This Row],[Cyl Cap (Ltr)]]*Table1[[#This Row],[Stock Move]])","v":0},{"$f":"IF(Table1[[#This Row],[Action]]=\"Issue\",Table1[[#This Row],[Quantity]],0)","v":0},{"$f":"SUMIF(D:D,Table1[[#This Row],[Item]],I:I)","v":0},{"$f":"IF(Table1[[#This Row],[Item]]=\"\",\"\",VLOOKUP(Table1[[#This Row],[Item]],Cylinders!A:D,4,FALSE))","v":"Oxygen"}]
["2020-04-22",{"$f":"IF(Table1[[#This Row],[Date]]=\"\",\"\",Table1[[#This Row],[Date]]-WEEKDAY(Table1[[#This Row],[Date]],2)+1)","v":"2020-04-20"},"Opening Stock","Oxy E","Stock",0,{"$f":"IF(Table1[[#This Row],[Item]]=\"\",\"\",VLOOKUP(Table1[[#This Row],[Item]],Cylinders!A:B,2,FALSE))","v":680},{"$f":"IF(Table1[[#This Row],[Cyl Cap (Ltr)]]=\"\",\"\",Table1[[#This Row],[Cyl Cap (Ltr)]]*Table1[[#This Row],[Quantity]])","v":0},{"$f":"IF(IF(Table1[[#This Row],[Action]]=\"Issue\",Table1[[#This Row],[Quantity]]*-1,Table1[[#This Row],[Quantity]])=0,IF(Table1[[#This Row],[Quantity]]<>\"\",0,\"\"),IF(Table1[[#This Row],[Action]]=\"Issue\",Table1[[#This Row],[Quantity]]*-1,Table1[[#This Row],[Quantity]]))","v":0},{"$f":"IF(Table1[[#This Row],[Cyl Cap (Ltr)]]=\"\",\"\",Table1[[#This Row],[Cyl Cap (Ltr)]]*Table1[[#This Row],[Stock Move]])","v":0},{"$f":"IF(Table1[[#This Row],[Action]]=\"Issue\",Table1[[#This Row],[Quantity]],0)","v":0},{"$f":"SUMIF(D:D,Table1[[#This Row],[Item]],I:I)","v":0},{"$f":"IF(Table1[[#This Row],[Item]]=\"\",\"\",VLOOKUP(Table1[[#This Row],[Item]],Cylinders!A:D,4,FALSE))","v":"Oxygen"}]
["2020-04-22",{"$f":"IF(Table1[[#This Row],[Date]]=\"\",\"\",Table1[[#This Row],[Date]]-WEEKDAY(Table1[[#This Row],[Date]],2)+1)","v":"2020-04-20"},"Opening Stock","Oxy F4","Stock",0,{"$f":"IF(Table1[[#This Row],[Item]]=\"\",\"\",VLOOKUP(Table1[[#This Row],[Item]],Cylinders!A:B,2,FALSE))","v":1360},{"$f":"IF(Table1[[#This Row],[Cyl Cap (Ltr)]]=\"\",\"\",Table1[[#This Row],[Cyl Cap (Ltr)]]*Table1[[#This Row],[Quantity]])","v":0},{"$f":"IF(IF(Table1[[#This Row],[Action]]=\"Issue\",Table1[[#This Row],[Quantity]]*-1,Table1[[#This Row],[Quantity]])=0,IF(Table1[[#This Row],[Quantity]]<>\"\",0,\"\"),IF(Table1[[#This Row],[Action]]=\"Issue\",Table1[[#This Row],[Quantity]]*-1,Table1[[#This Row],[Quantity]]))","v":0},{"$f":"IF(Table1[[#This Row],[Cyl Cap (Ltr)]]=\"\",\"\",Table1[[#This Row],[Cyl Cap (Ltr)]]*Table1[[#This Row],[Stock Move]])","v":0},{"$f":"IF(Table1[[#This Row],[Action]]=\"Issue\",Table1[[#This Row],[Quantity]],0)","v":0},{"$f":"SUMIF(D:D,Table1[[#This Row],[Item]],I:I)","v":0},{"$f":"IF(Table1[[#This Row],[Item]]=\"\",\"\",VLOOKUP(Table1[[#This Row],[Item]],Cylinders!A:D,4,FALSE))","v":"Oxygen"}]
["2020-04-22",{"$f":"IF(Table1[[#This Row],[Date]]=\"\",\"\",Table1[[#This Row],[Date]]-WEEKDAY(Table1[[#This Row],[Date]],2)+1)","v":"2020-04-20"},"Opening Stock","Oxy F4C1T","Stock",0,{"$f":"IF(Table1[[#This Row],[Item]]=\"\",\"\",VLOOKUP(Table1[[#This Row],[Item]],Cylinders!A:B,2,FALSE))","v":1360},{"$f":"IF(Table1[[#This Row],[Cyl Cap (Ltr)]]=\"\",\"\",Table1[[#This Row],[Cyl Cap (Ltr)]]*Table1[[#This Row],[Quantity]])","v":0},{"$f":"IF(IF(Table1[[#This Row],[Action]]=\"Issue\",Table1[[#This Row],[Quantity]]*-1,Table1[[#This Row],[Quantity]])=0,IF(Table1[[#This Row],[Quantity]]<>\"\",0,\"\"),IF(Table1[[#This Row],[Action]]=\"Issue\",Table1[[#This Row],[Quantity]]*-1,Table1[[#This Row],[Quantity]]))","v":0},{"$f":"IF(Table1[[#This Row],[Cyl Cap (Ltr)]]=\"\",\"\",Table1[[#This Row],[Cyl Cap (Ltr)]]*Table1[[#This Row],[Stock Move]])","v":0},{"$f":"IF(Table1[[#This Row],[Action]]=\"Issue\",Table1[[#This Row],[Quantity]],0)","v":0},{"$f":"SUMIF(D:D,Table1[[#This Row],[Item]],I:I)","v":0},{"$f":"IF(Table1[[#This Row],[Item]]=\"\",\"\",VLOOKUP(Table1[[#This Row],[Item]],Cylinders!A:D,4,FALSE))","v":"Oxygen"}]
["2020-04-22",{"$f":"IF(Table1[[#This Row],[Date]]=\"\",\"\",Table1[[#This Row],[Date]]-WEEKDAY(Table1[[#This Row],[Date]],2)+1)","v":"2020-04-20"},"Opening Stock","Oxy G","Stock",0,{"$f":"IF(Table1[[#This Row],[Item]]=\"\",\"\",VLOOKUP(Table1[[#This Row],[Item]],Cylinders!A:B,2,FALSE))","v":3400},{"$f":"IF(Table1[[#This Row],[Cyl Cap (Ltr)]]=\"\",\"\",Table1[[#This Row],[Cyl Cap (Ltr)]]*Table1[[#This Row],[Quantity]])","v":0},{"$f":"IF(IF(Table1[[#This Row],[Action]]=\"Issue\",Table1[[#This Row],[Quantity]]*-1,Table1[[#This Row],[Quantity]])=0,IF(Table1[[#This Row],[Quantity]]<>\"\",0,\"\"),IF(Table1[[#This Row],[Action]]=\"Issue\",Table1[[#This Row],[Quantity]]*-1,Table1[[#This Row],[Quantity]]))","v":0},{"$f":"IF(Table1[[#This Row],[Cyl Cap (Ltr)]]=\"\",\"\",Table1[[#This Row],[Cyl Cap (Ltr)]]*Table1[[#This Row],[Stock Move]])","v":0},{"$f":"IF(Table1[[#This Row],[Action]]=\"Issue\",Table1[[#This Row],[Quantity]],0)","v":0},{"$f":"SUMIF(D:D,Table1[[#This Row],[Item]],I:I)","v":0},{"$f":"IF(Table1[[#This Row],[Item]]=\"\",\"\",VLOOKUP(Table1[[#This Row],[Item]],Cylinders!A:D,4,FALSE))","v":"Oxygen"}]
["2020-04-22",{"$f":"IF(Table1[[#This Row],[Date]]=\"\",\"\",Table1[[#This Row],[Date]]-WEEKDAY(Table1[[#This Row],[Date]],2)+1)","v":"2020-04-20"},"Opening Stock","Oxy HX","Stock",0,{"$f":"IF(Table1[[#This Row],[Item]]=\"\",\"\",VLOOKUP(Table1[[#This Row],[Item]],Cylinders!A:B,2,FALSE))","v":2300},{"$f":"IF(Table1[[#This Row],[Cyl Cap (Ltr)]]=\"\",\"\",Table1[[#This Row],[Cyl Cap (Ltr)]]*Table1[[#This Row],[Quantity]])","v":0},{"$f":"IF(IF(Table1[[#This Row],[Action]]=\"Issue\",Table1[[#This Row],[Quantity]]*-1,Table1[[#This Row],[Quantity]])=0,IF(Table1[[#This Row],[Quantity]]<>\"\",0,\"\"),IF(Table1[[#This Row],[Action]]=\"Issue\",Table1[[#This Row],[Quantity]]*-1,Table1[[#This Row],[Quantity]]))","v":0},{"$f":"IF(Table1[[#This Row],[Cyl Cap (Ltr)]]=\"\",\"\",Table1[[#This Row],[Cyl Cap (Ltr)]]*Table1[[#This Row],[Stock Move]])","v":0},{"$f":"IF(Table1[[#This Row],[Action]]=\"Issue\",Table1[[#This Row],[Quantity]],0)","v":0},{"$f":"SUMIF(D:D,Table1[[#This Row],[Item]],I:I)","v":0},{"$f":"IF(Table1[[#This Row],[Item]]=\"\",\"\",VLOOKUP(Table1[[#This Row],[Item]],Cylinders!A:D,4,FALSE))","v":"Oxygen"}]
["2020-04-22",{"$f":"IF(Table1[[#This Row],[Date]]=\"\",\"\",Table1[[#This Row],[Date]]-WEEKDAY(Table1[[#This Row],[Date]],2)+1)","v":"2020-04-20"},"Opening Stock","Oxy J","Stock",0,{"$f":"IF(Table1[[#This Row],[Item]]=\"\",\"\",VLOOKUP(Table1[[#This Row],[Item]],Cylinders!A:B,2,FALSE))","v":6800},{"$f":"IF(Table1[[#This Row],[Cyl Cap (Ltr)]]=\"\",\"\",Table1[[#This Row],[Cyl Cap (Ltr)]]*Table1[[#This Row],[Quantity]])","v":0},{"$f":"IF(IF(Table1[[#This Row],[Action]]=\"Issue\",Table1[[#This Row],[Quantity]]*-1,Table1[[#This Row],[Quantity]])=0,IF(Table1[[#This Row],[Quantity]]<>\"\",0,\"\"),IF(Table1[[#This Row],[Action]]=\"Issue\",Table1[[#This Row],[Quantity]]*-1,Table1[[#This Row],[Quantity]]))","v":0},{"$f":"IF(Table1[[#This Row],[Cyl Cap (Ltr)]]=\"\",\"\",Table1[[#This Row],[Cyl Cap (Ltr)]]*Table1[[#This Row],[Stock Move]])","v":0},{"$f":"IF(Table1[[#This Row],[Action]]=\"Issue\",Table1[[#This Row],[Quantity]],0)","v":0},{"$f":"SUMIF(D:D,Table1[[#This Row],[Item]],I:I)","v":0},{"$f":"IF(Table1[[#This Row],[Item]]=\"\",\"\",VLOOKUP(Table1[[#This Row],[Item]],Cylinders!A:D,4,FALSE))","v":"Oxygen"}]
["2020-04-22",{"$f":"IF(Table1[[#This Row],[Date]]=\"\",\"\",Table1[[#This Row],[Date]]-WEEKDAY(Table1[[#This Row],[Date]],2)+1)","v":"2020-04-20"},"Opening Stock","Oxy SJ","Stock",0,{"$f":"IF(Table1[[#This Row],[Item]]=\"\",\"\",VLOOKUP(Table1[[#This Row],[Item]],Cylinders!A:B,2,FALSE))","v":7300},{"$f":"IF(Table1[[#This Row],[Cyl Cap (Ltr)]]=\"\",\"\",Table1[[#This Row],[Cyl Cap (Ltr)]]*Table1[[#This Row],[Quantity]])","v":0},{"$f":"IF(IF(Table1[[#This Row],[Action]]=\"Issue\",Table1[[#This Row],[Quantity]]*-1,Table1[[#This Row],[Quantity]])=0,IF(Table1[[#This Row],[Quantity]]<>\"\",0,\"\"),IF(Table1[[#This Row],[Action]]=\"Issue\",Table1[[#This Row],[Quantity]]*-1,Table1[[#This Row],[Quantity]]))","v":0},{"$f":"IF(Table1[[#This Row],[Cyl Cap (Ltr)]]=\"\",\"\",Table1[[#This Row],[Cyl Cap (Ltr)]]*Table1[[#This Row],[Stock Move]])","v":0},{"$f":"IF(Table1[[#This Row],[Action]]=\"Issue\",Table1[[#This Row],[Quantity]],0)","v":0},{"$f":"SUMIF(D:D,Table1[[#This Row],[Item]],I:I)","v":0},{"$f":"IF(Table1[[#This Row],[Item]]=\"\",\"\",VLOOKUP(Table1[[#This Row],[Item]],Cylinders!A:D,4,FALSE))","v":"Oxygen"}]
["2020-04-22",{"$f":"IF(Table1[[#This Row],[Date]]=\"\",\"\",Table1[[#This Row],[Date]]-WEEKDAY(Table1[[#This Row],[Date]],2)+1)","v":"2020-04-20"},"Opening Stock","Air E","Stock",0,{"$f":"IF(Table1[[#This Row],[Item]]=\"\",\"\",VLOOKUP(Table1[[#This Row],[Item]],Cylinders!A:B,2,FALSE))","v":640},{"$f":"IF(Table1[[#This Row],[Cyl Cap (Ltr)]]=\"\",\"\",Table1[[#This Row],[Cyl Cap (Ltr)]]*Table1[[#This Row],[Quantity]])","v":0},{"$f":"IF(IF(Table1[[#This Row],[Action]]=\"Issue\",Table1[[#This Row],[Quantity]]*-1,Table1[[#This Row],[Quantity]])=0,IF(Table1[[#This Row],[Quantity]]<>\"\",0,\"\"),IF(Table1[[#This Row],[Action]]=\"Issue\",Table1[[#This Row],[Quantity]]*-1,Table1[[#This Row],[Quantity]]))","v":0},{"$f":"IF(Table1[[#This Row],[Cyl Cap (Ltr)]]=\"\",\"\",Table1[[#This Row],[Cyl Cap (Ltr)]]*Table1[[#This Row],[Stock Move]])","v":0},{"$f":"IF(Table1[[#This Row],[Action]]=\"Issue\",Table1[[#This Row],[Quantity]],0)","v":0},{"$f":"SUMIF(D:D,Table1[[#This Row],[Item]],I:I)","v":0},{"$f":"IF(Table1[[#This Row],[Item]]=\"\",\"\",VLOOKUP(Table1[[#This Row],[Item]],Cylinders!A:D,4,FALSE))","v":"Medical Air"}]
["2020-04-22",{"$f":"IF(Table1[[#This Row],[Date]]=\"\",\"\",Table1[[#This Row],[Date]]-WEEKDAY(Table1[[#This Row],[Date]],2)+1)","v":"2020-04-20"},"Opening Stock","Air F","Stock",0,{"$f":"IF(Table1[[#This Row],[Item]]=\"\",\"\",VLOOKUP(Table1[[#This Row],[Item]],Cylinders!A:B,2,FALSE))","v":1280},{"$f":"IF(Table1[[#This Row],[Cyl Cap (Ltr)]]=\"\",\"\",Table1[[#This Row],[Cyl Cap (Ltr)]]*Table1[[#This Row],[Quantity]])","v":0},{"$f":"IF(IF(Table1[[#This Row],[Action]]=\"Issue\",Table1[[#This Row],[Quantity]]*-1,Table1[[#This Row],[Quantity]])=0,IF(Table1[[#This Row],[Quantity]]<>\"\",0,\"\"),IF(Table1[[#This Row],[Action]]=\"Issue\",Table1[[#This Row],[Quantity]]*-1,Table1[[#This Row],[Quantity]]))","v":0},{"$f":"IF(Table1[[#This Row],[Cyl Cap (Ltr)]]=\"\",\"\",Table1[[#This Row],[Cyl Cap (Ltr)]]*Table1[[#This Row],[Stock Move]])","v":0},{"$f":"IF(Table1[[#This Row],[Action]]=\"Issue\",Table1[[#This Row],[Quantity]],0)","v":0},{"$f":"SUMIF(D:D,Table1[[#This Row],[Item]],I:I)","v":0},{"$f":"IF(Table1[[#This Row],[Item]]=\"\",\"\",VLOOKUP(Table1[[#This Row],[Item]],Cylinders!A:D,4,FALSE))","v":"Medical Air"}]
["2020-04-22",{"$f":"IF(Table1[[#This Row],[Date]]=\"\",\"\",Table1[[#This Row],[Date]]-WEEKDAY(Table1[[#This Row],[Date]],2)+1)","v":"2020-04-20"},"Opening Stock","Air G","Stock",0,{"$f":"IF(Table1[[#This Row],[Item]]=\"\",\"\",VLOOKUP(Table1[[#This Row],[Item]],Cylinders!A:B,2,FALSE))","v":3200},{"$f":"IF(Table1[[#This Row],[Cyl Cap (Ltr)]]=\"\",\"\",Table1[[#This Row],[Cyl Cap (Ltr)]]*Table1[[#This Row],[Quantity]])","v":0},{"$f":"IF(IF(Table1[[#This Row],[Action]]=\"Issue\",Table1[[#This Row],[Quantity]]*-1,Table1[[#This Row],[Quantity]])=0,IF(Table1[[#This Row],[Quantity]]<>\"\",0,\"\"),IF(Table1[[#This Row],[Action]]=\"Issue\",Table1[[#This Row],[Quantity]]*-1,Table1[[#This Row],[Quantity]]))","v":0},{"$f":"IF(Table1[[#This Row],[Cyl Cap (Ltr)]]=\"\",\"\",Table1[[#This Row],[Cyl Cap (Ltr)]]*Table1[[#This Row],[Stock Move]])","v":0},{"$f":"IF(Table1[[#This Row],[Action]]=\"Issue\",Table1[[#This Row],[Quantity]],0)","v":0},{"$f":"SUMIF(D:D,Table1[[#This Row],[Item]],I:I)","v":0},{"$f":"IF(Table1[[#This Row],[Item]]=\"\",\"\",VLOOKUP(Table1[[#This Row],[Item]],Cylinders!A:D,4,FALSE))","v":"Medical Air"}]
["2020-04-22",{"$f":"IF(Table1[[#This Row],[Date]]=\"\",\"\",Table1[[#This Row],[Date]]-WEEKDAY(Table1[[#This Row],[Date]],2)+1)","v":"2020-04-20"},"Opening Stock","Air J","Stock",0,{"$f":"IF(Table1[[#This Row],[Item]]=\"\",\"\",VLOOKUP(Table1[[#This Row],[Item]],Cylinders!A:B,2,FALSE))","v":6400},{"$f":"IF(Table1[[#This Row],[Cyl Cap (Ltr)]]=\"\",\"\",Table1[[#This Row],[Cyl Cap (Ltr)]]*Table1[[#This Row],[Quantity]])","v":0},{"$f":"IF(IF(Table1[[#This Row],[Action]]=\"Issue\",Table1[[#This Row],[Quantity]]*-1,Table1[[#This Row],[Quantity]])=0,IF(Table1[[#This Row],[Quantity]]<>\"\",0,\"\"),IF(Table1[[#This Row],[Action]]=\"Issue\",Table1[[#This Row],[Quantity]]*-1,Table1[[#This Row],[Quantity]]))","v":0},{"$f":"IF(Table1[[#This Row],[Cyl Cap (Ltr)]]=\"\",\"\",Table1[[#This Row],[Cyl Cap (Ltr)]]*Table1[[#This Row],[Stock Move]])","v":0},{"$f":"IF(Table1[[#This Row],[Action]]=\"Issue\",Table1[[#This Row],[Quantity]],0)","v":0},{"$f":"SUMIF(D:D,Table1[[#This Row],[Item]],I:I)","v":0},{"$f":"IF(Table1[[#This Row],[Item]]=\"\",\"\",VLOOKUP(Table1[[#This Row],[Item]],Cylinders!A:D,4,FALSE))","v":"Medical Air"}]
["2020-04-22",{"$f":"IF(Table1[[#This Row],[Date]]=\"\",\"\",Table1[[#This Row],[Date]]-WEEKDAY(Table1[[#This Row],[Date]],2)+1)","v":"2020-04-20"},"Opening Stock","Air SJ","Stock",0,{"$f":"IF(Table1[[#This Row],[Item]]=\"\",\"\",VLOOKUP(Table1[[#This Row],[Item]],Cylinders!A:B,2,FALSE))","v":6800},{"$f":"IF(Table1[[#This Row],[Cyl Cap (Ltr)]]=\"\",\"\",Table1[[#This Row],[Cyl Cap (Ltr)]]*Table1[[#This Row],[Quantity]])","v":0},{"$f":"IF(IF(Table1[[#This Row],[Action]]=\"Issue\",Table1[[#This Row],[Quantity]]*-1,Table1[[#This Row],[Quantity]])=0,IF(Table1[[#This Row],[Quantity]]<>\"\",0,\"\"),IF(Table1[[#This Row],[Action]]=\"Issue\",Table1[[#This Row],[Quantity]]*-1,Table1[[#This Row],[Quantity]]))","v":0},{"$f":"IF(Table1[[#This Row],[Cyl Cap (Ltr)]]=\"\",\"\",Table1[[#This Row],[Cyl Cap (Ltr)]]*Table1[[#This Row],[Stock Move]])","v":0},{"$f":"IF(Table1[[#This Row],[Action]]=\"Issue\",Table1[[#This Row],[Quantity]],0)","v":0},{"$f":"SUMIF(D:D,Table1[[#This Row],[Item]],I:I)","v":0},{"$f":"IF(Table1[[#This Row],[Item]]=\"\",\"\",VLOOKUP(Table1[[#This Row],[Item]],Cylinders!A:D,4,FALSE))","v":"Medical Air"}]
["2020-04-22",{"$f":"IF(Table1[[#This Row],[Date]]=\"\",\"\",Table1[[#This Row],[Date]]-WEEKDAY(Table1[[#This Row],[Date]],2)+1)","v":"2020-04-20"},"Opening Stock","CO2 C","Stock",0,{"$f":"IF(Table1[[#This Row],[Item]]=\"\",\"\",VLOOKUP(Table1[[#This Row],[Item]],Cylinders!A:B,2,FALSE))","v":450},{"$f":"IF(Table1[[#This Row],[Cyl Cap (Ltr)]]=\"\",\"\",Table1[[#This Row],[Cyl Cap (Ltr)]]*Table1[[#This Row],[Quantity]])","v":0},{"$f":"IF(IF(Table1[[#This Row],[Action]]=\"Issue\",Table1[[#This Row],[Quantity]]*-1,Table1[[#This Row],[Quantity]])=0,IF(Table1[[#This Row],[Quantity]]<>\"\",0,\"\"),IF(Table1[[#This Row],[Action]]=\"Issue\",Table1[[#This Row],[Quantity]]*-1,Table1[[#This Row],[Quantity]]))","v":0},{"$f":"IF(Table1[[#This Row],[Cyl Cap (Ltr)]]=\"\",\"\",Table1[[#This Row],[Cyl Cap (Ltr)]]*Table1[[#This Row],[Stock Move]])","v":0},{"$f":"IF(Table1[[#This Row],[Action]]=\"Issue\",Table1[[#This Row],[Quantity]],0)","v":0},{"$f":"SUMIF(D:D,Table1[[#This Row],[Item]],I:I)","v":0},{"$f":"IF(Table1[[#This Row],[Item]]=\"\",\"\",VLOOKUP(Table1[[#This Row],[Item]],Cylinders!A:D,4,FALSE))","v":"CO2"}]
["2020-04-22",{"$f":"IF(Table1[[#This Row],[Date]]=\"\",\"\",Table1[[#This Row],[Date]]-WEEKDAY(Table1[[#This Row],[Date]],2)+1)","v":"2020-04-20"},"Opening Stock","CO2 E","Stock",0,{"$f":"IF(Table1[[#This Row],[Item]]=\"\",\"\",VLOOKUP(Table1[[#This Row],[Item]],Cylinders!A:B,2,FALSE))","v":1800},{"$f":"IF(Table1[[#This Row],[Cyl Cap (Ltr)]]=\"\",\"\",Table1[[#This Row],[Cyl Cap (Ltr)]]*Table1[[#This Row],[Quantity]])","v":0},{"$f":"IF(IF(Table1[[#This Row],[Action]]=\"Issue\",Table1[[#This Row],[Quantity]]*-1,Table1[[#This Row],[Quantity]])=0,IF(Table1[[#This Row],[Quantity]]<>\"\",0,\"\"),IF(Table1[[#This Row],[Action]]=\"Issue\",Table1[[#This Row],[Quantity]]*-1,Table1[[#This Row],[Quantity]]))","v":0},{"$f":"IF(Table1[[#This Row],[Cyl Cap (Ltr)]]=\"\",\"\",Table1[[#This Row],[Cyl Cap (Ltr)]]*Table1[[#This Row],[Stock Move]])","v":0},{"$f":"IF(Table1[[#This Row],[Action]]=\"Issue\",Table1[[#This Row],[Quantity]],0)","v":0},{"$f":"SUMIF(D:D,Table1[[#This Row],[Item]],I:I)","v":0},{"$f":"IF(Table1[[#This Row],[Item]]=\"\",\"\",VLOOKUP(Table1[[#This Row],[Item]],Cylinders!A:D,4,FALSE))","v":"CO2"}]
["2020-04-22",{"$f":"IF(Table1[[#This Row],[Date]]=\"\",\"\",Table1[[#This Row],[Date]]-WEEKDAY(Table1[[#This Row],[Date]],2)+1)","v":"2020-04-20"},"Opening Stock","CO2 VF","Stock",0,{"$f":"IF(Table1[[#This Row],[Item]]=\"\",\"\",VLOOKUP(Table1[[#This Row],[Item]],Cylinders!A:B,2,FALSE))","v":3600},{"$f":"IF(Table1[[#This Row],[Cyl Cap (Ltr)]]=\"\",\"\",Table1[[#This Row],[Cyl Cap (Ltr)]]*Table1[[#This Row],[Quantity]])","v":0},{"$f":"IF(IF(Table1[[#This Row],[Action]]=\"Issue\",Table1[[#This Row],[Quantity]]*-1,Table1[[#This Row],[Quantity]])=0,IF(Table1[[#This Row],[Quantity]]<>\"\",0,\"\"),IF(Table1[[#This Row],[Action]]=\"Issue\",Table1[[#This Row],[Quantity]]*-1,Table1[[#This Row],[Quantity]]))","v":0},{"$f":"IF(Table1[[#This Row],[Cyl Cap (Ltr)]]=\"\",\"\",Table1[[#This Row],[Cyl Cap (Ltr)]]*Table1[[#This Row],[Stock Move]])","v":0},{"$f":"IF(Table1[[#This Row],[Action]]=\"Issue\",Table1[[#This Row],[Quantity]],0)","v":0},{"$f":"SUMIF(D:D,Table1[[#This Row],[Item]],I:I)","v":0},{"$f":"IF(Table1[[#This Row],[Item]]=\"\",\"\",VLOOKUP(Table1[[#This Row],[Item]],Cylinders!A:D,4,FALSE))","v":"CO2"}]
["2020-04-22",{"$f":"IF(Table1[[#This Row],[Date]]=\"\",\"\",Table1[[#This Row],[Date]]-WEEKDAY(Table1[[#This Row],[Date]],2)+1)","v":"2020-04-20"},"Opening Stock","CO2 VK","Stock",0,{"$f":"IF(Table1[[#This Row],[Item]]=\"\",\"\",VLOOKUP(Table1[[#This Row],[Item]],Cylinders!A:B,2,FALSE))","v":3600},{"$f":"IF(Table1[[#This Row],[Cyl Cap (Ltr)]]=\"\",\"\",Table1[[#This Row],[Cyl Cap (Ltr)]]*Table1[[#This Row],[Quantity]])","v":0},{"$f":"IF(IF(Table1[[#This Row],[Action]]=\"Issue\",Table1[[#This Row],[Quantity]]*-1,Table1[[#This Row],[Quantity]])=0,IF(Table1[[#This Row],[Quantity]]<>\"\",0,\"\"),IF(Table1[[#This Row],[Action]]=\"Issue\",Table1[[#This Row],[Quantity]]*-1,Table1[[#This Row],[Quantity]]))","v":0},{"$f":"IF(Table1[[#This Row],[Cyl Cap (Ltr)]]=\"\",\"\",Table1[[#This Row],[Cyl Cap (Ltr)]]*Table1[[#This Row],[Stock Move]])","v":0},{"$f":"IF(Table1[[#This Row],[Action]]=\"Issue\",Table1[[#This Row],[Quantity]],0)","v":0},{"$f":"SUMIF(D:D,Table1[[#This Row],[Item]],I:I)","v":0},{"$f":"IF(Table1[[#This Row],[Item]]=\"\",\"\",VLOOKUP(Table1[[#This Row],[Item]],Cylinders!A:D,4,FALSE))","v":"CO2"}]
["2020-04-22",{"$f":"IF(Table1[[#This Row],[Date]]=\"\",\"\",Table1[[#This Row],[Date]]-WEEKDAY(Table1[[#This Row],[Date]],2)+1)","v":"2020-04-20"},"Opening Stock","Equinox AD","Stock",0,{"$f":"IF(Table1[[#This Row],[Item]]=\"\",\"\",VLOOKUP(Table1[[#This Row],[Item]],Cylinders!A:B,2,FALSE))","v":420},{"$f":"IF(Table1[[#This Row],[Cyl Cap (Ltr)]]=\"\",\"\",Table1[[#This Row],[Cyl Cap (Ltr)]]*Table1[[#This Row],[Quantity]])","v":0},{"$f":"IF(IF(Table1[[#This Row],[Action]]=\"Issue\",Table1[[#This Row],[Quantity]]*-1,Table1[[#This Row],[Quantity]])=0,IF(Table1[[#This Row],[Quantity]]<>\"\",0,\"\"),IF(Table1[[#This Row],[Action]]=\"Issue\",Table1[[#This Row],[Quantity]]*-1,Table1[[#This Row],[Quantity]]))","v":0},{"$f":"IF(Table1[[#This Row],[Cyl Cap (Ltr)]]=\"\",\"\",Table1[[#This Row],[Cyl Cap (Ltr)]]*Table1[[#This Row],[Stock Move]])","v":0},{"$f":"IF(Table1[[#This Row],[Action]]=\"Issue\",Table1[[#This Row],[Quantity]],0)","v":0},{"$f":"SUMIF(D:D,Table1[[#This Row],[Item]],I:I)","v":0},{"$f":"IF(Table1[[#This Row],[Item]]=\"\",\"\",VLOOKUP(Table1[[#This Row],[Item]],Cylinders!A:D,4,FALSE))","v":"Entonox"}]
["2020-04-22",{"$f":"IF(Table1[[#This Row],[Date]]=\"\",\"\",Table1[[#This Row],[Date]]-WEEKDAY(Table1[[#This Row],[Date]],2)+1)","v":"2020-04-20"},"Opening Stock","Equinox D","Stock",0,{"$f":"IF(Table1[[#This Row],[Item]]=\"\",\"\",VLOOKUP(Table1[[#This Row],[Item]],Cylinders!A:B,2,FALSE))","v":500},{"$f":"IF(Table1[[#This Row],[Cyl Cap (Ltr)]]=\"\",\"\",Table1[[#This Row],[Cyl Cap (Ltr)]]*Table1[[#This Row],[Quantity]])","v":0},{"$f":"IF(IF(Table1[[#This Row],[Action]]=\"Issue\",Table1[[#This Row],[Quantity]]*-1,Table1[[#This Row],[Quantity]])=0,IF(Table1[[#This Row],[Quantity]]<>\"\",0,\"\"),IF(Table1[[#This Row],[Action]]=\"Issue\",Table1[[#This Row],[Quantity]]*-1,Table1[[#This Row],[Quantity]]))","v":0},{"$f":"IF(Table1[[#This Row],[Cyl Cap (Ltr)]]=\"\",\"\",Table1[[#This Row],[Cyl Cap (Ltr)]]*Table1[[#This Row],[Stock Move]])","v":0},{"$f":"IF(Table1[[#This Row],[Action]]=\"Issue\",Table1[[#This Row],[Quantity]],0)","v":0},{"$f":"SUMIF(D:D,Table1[[#This Row],[Item]],I:I)","v":0},{"$f":"IF(Table1[[#This Row],[Item]]=\"\",\"\",VLOOKUP(Table1[[#This Row],[Item]],Cylinders!A:D,4,FALSE))","v":"Entonox"}]
["2020-04-22",{"$f":"IF(Table1[[#This Row],[Date]]=\"\",\"\",Table1[[#This Row],[Date]]-WEEKDAY(Table1[[#This Row],[Date]],2)+1)","v":"2020-04-20"},"Opening Stock","Equinox ED","Stock",0,{"$f":"IF(Table1[[#This Row],[Item]]=\"\",\"\",VLOOKUP(Table1[[#This Row],[Item]],Cylinders!A:B,2,FALSE))","v":700},{"$f":"IF(Table1[[#This Row],[Cyl Cap (Ltr)]]=\"\",\"\",Table1[[#This Row],[Cyl Cap (Ltr)]]*Table1[[#This Row],[Quantity]])","v":0},{"$f":"IF(IF(Table1[[#This Row],[Action]]=\"Issue\",Table1[[#This Row],[Quantity]]*-1,Table1[[#This Row],[Quantity]])=0,IF(Table1[[#This Row],[Quantity]]<>\"\",0,\"\"),IF(Table1[[#This Row],[Action]]=\"Issue\",Table1[[#This Row],[Quantity]]*-1,Table1[[#This Row],[Quantity]]))","v":0},{"$f":"IF(Table1[[#This Row],[Cyl Cap (Ltr)]]=\"\",\"\",Table1[[#This Row],[Cyl Cap (Ltr)]]*Table1[[#This Row],[Stock Move]])","v":0},{"$f":"IF(Table1[[#This Row],[Action]]=\"Issue\",Table1[[#This Row],[Quantity]],0)","v":0},{"$f":"SUMIF(D:D,Table1[[#This Row],[Item]],I:I)","v":0},{"$f":"IF(Table1[[#This Row],[Item]]=\"\",\"\",VLOOKUP(Table1[[#This Row],[Item]],Cylinders!A:D,4,FALSE))","v":"Entonox"}]
["2020-04-22",{"$f":"IF(Table1[[#This Row],[Date]]=\"\",\"\",Table1[[#This Row],[Date]]-WEEKDAY(Table1[[#This Row],[Date]],2)+1)","v":"2020-04-20"},"Opening Stock","Equinox EX","Stock",0,{"$f":"IF(Table1[[#This Row],[Item]]=\"\",\"\",VLOOKUP(Table1[[#This Row],[Item]],Cylinders!A:B,2,FALSE))","v":3500},{"$f":"IF(Table1[[#This Row],[Cyl Cap (Ltr)]]=\"\",\"\",Table1[[#This Row],[Cyl Cap (Ltr)]]*Table1[[#This Row],[Quantity]])","v":0},{"$f":"IF(IF(Table1[[#This Row],[Action]]=\"Issue\",Table1[[#This Row],[Quantity]]*-1,Table1[[#This Row],[Quantity]])=0,IF(Table1[[#This Row],[Quantity]]<>\"\",0,\"\"),IF(Table1[[#This Row],[Action]]=\"Issue\",Table1[[#This Row],[Quantity]]*-1,Table1[[#This Row],[Quantity]]))","v":0},{"$f":"IF(Table1[[#This Row],[Cyl Cap (Ltr)]]=\"\",\"\",Table1[[#This Row],[Cyl Cap (Ltr)]]*Table1[[#This Row],[Stock Move]])","v":0},{"$f":"IF(Table1[[#This Row],[Action]]=\"Issue\",Table1[[#This Row],[Quantity]],0)","v":0},{"$f":"SUMIF(D:D,Table1[[#This Row],[Item]],I:I)","v":0},{"$f":"IF(Table1[[#This Row],[Item]]=\"\",\"\",VLOOKUP(Table1[[#This Row],[Item]],Cylinders!A:D,4,FALSE))","v":"Entonox"}]
["2020-04-22",{"$f":"IF(Table1[[#This Row],[Date]]=\"\",\"\",Table1[[#This Row],[Date]]-WEEKDAY(Table1[[#This Row],[Date]],2)+1)","v":"2020-04-20"},"Opening Stock","Equinox F","Stock",0,{"$f":"IF(Table1[[#This Row],[Item]]=\"\",\"\",VLOOKUP(Table1[[#This Row],[Item]],Cylinders!A:B,2,FALSE))","v":2000},{"$f":"IF(Table1[[#This Row],[Cyl Cap (Ltr)]]=\"\",\"\",Table1[[#This Row],[Cyl Cap (Ltr)]]*Table1[[#This Row],[Quantity]])","v":0},{"$f":"IF(IF(Table1[[#This Row],[Action]]=\"Issue\",Table1[[#This Row],[Quantity]]*-1,Table1[[#This Row],[Quantity]])=0,IF(Table1[[#This Row],[Quantity]]<>\"\",0,\"\"),IF(Table1[[#This Row],[Action]]=\"Issue\",Table1[[#This Row],[Quantity]]*-1,Table1[[#This Row],[Quantity]]))","v":0},{"$f":"IF(Table1[[#This Row],[Cyl Cap (Ltr)]]=\"\",\"\",Table1[[#This Row],[Cyl Cap (Ltr)]]*Table1[[#This Row],[Stock Move]])","v":0},{"$f":"IF(Table1[[#This Row],[Action]]=\"Issue\",Table1[[#This Row],[Quantity]],0)","v":0},{"$f":"SUMIF(D:D,Table1[[#This Row],[Item]],I:I)","v":0},{"$f":"IF(Table1[[#This Row],[Item]]=\"\",\"\",VLOOKUP(Table1[[#This Row],[Item]],Cylinders!A:D,4,FALSE))","v":"Entonox"}]
["2020-04-22",{"$f":"IF(Table1[[#This Row],[Date]]=\"\",\"\",Table1[[#This Row],[Date]]-WEEKDAY(Table1[[#This Row],[Date]],2)+1)","v":"2020-04-20"},"Opening Stock","Equinox G","Stock",0,{"$f":"IF(Table1[[#This Row],[Item]]=\"\",\"\",VLOOKUP(Table1[[#This Row],[Item]],Cylinders!A:B,2,FALSE))","v":5000},{"$f":"IF(Table1[[#This Row],[Cyl Cap (Ltr)]]=\"\",\"\",Table1[[#This Row],[Cyl Cap (Ltr)]]*Table1[[#This Row],[Quantity]])","v":0},{"$f":"IF(IF(Table1[[#This Row],[Action]]=\"Issue\",Table1[[#This Row],[Quantity]]*-1,Table1[[#This Row],[Quantity]])=0,IF(Table1[[#This Row],[Quantity]]<>\"\",0,\"\"),IF(Table1[[#This Row],[Action]]=\"Issue\",Table1[[#This Row],[Quantity]]*-1,Table1[[#This Row],[Quantity]]))","v":0},{"$f":"IF(Table1[[#This Row],[Cyl Cap (Ltr)]]=\"\",\"\",Table1[[#This Row],[Cyl Cap (Ltr)]]*Table1[[#This Row],[Stock Move]])","v":0},{"$f":"IF(Table1[[#This Row],[Action]]=\"Issue\",Table1[[#This Row],[Quantity]],0)","v":0},{"$f":"SUMIF(D:D,Table1[[#This Row],[Item]],I:I)","v":0},{"$f":"IF(Table1[[#This Row],[Item]]=\"\",\"\",VLOOKUP(Table1[[#This Row],[Item]],Cylinders!A:D,4,FALSE))","v":"Entonox"}]
["2020-04-22",{"$f":"IF(Table1[[#This Row],[Date]]=\"\",\"\",Table1[[#This Row],[Date]]-WEEKDAY(Table1[[#This Row],[Date]],2)+1)","v":"2020-04-20"},"Opening Stock","Nitrous E","Stock",0,{"$f":"IF(Table1[[#This Row],[Item]]=\"\",\"\",VLOOKUP(Table1[[#This Row],[Item]],Cylinders!A:B,2,FALSE))","v":1800},{"$f":"IF(Table1[[#This Row],[Cyl Cap (Ltr)]]=\"\",\"\",Table1[[#This Row],[Cyl Cap (Ltr)]]*Table1[[#This Row],[Quantity]])","v":0},{"$f":"IF(IF(Table1[[#This Row],[Action]]=\"Issue\",Table1[[#This Row],[Quantity]]*-1,Table1[[#This Row],[Quantity]])=0,IF(Table1[[#This Row],[Quantity]]<>\"\",0,\"\"),IF(Table1[[#This Row],[Action]]=\"Issue\",Table1[[#This Row],[Quantity]]*-1,Table1[[#This Row],[Quantity]]))","v":0},{"$f":"IF(Table1[[#This Row],[Cyl Cap (Ltr)]]=\"\",\"\",Table1[[#This Row],[Cyl Cap (Ltr)]]*Table1[[#This Row],[Stock Move]])","v":0},{"$f":"IF(Table1[[#This Row],[Action]]=\"Issue\",Table1[[#This Row],[Quantity]],0)","v":0},{"$f":"SUMIF(D:D,Table1[[#This Row],[Item]],I:I)","v":0},{"$f":"IF(Table1[[#This Row],[Item]]=\"\",\"\",VLOOKUP(Table1[[#This Row],[Item]],Cylinders!A:D,4,FALSE))","v":"Nitrous Oxide"}]
["2020-04-22",{"$f":"IF(Table1[[#This Row],[Date]]=\"\",\"\",Table1[[#This Row],[Date]]-WEEKDAY(Table1[[#This Row],[Date]],2)+1)","v":"2020-04-20"},"Opening Stock","Nitrous F","Stock",0,{"$f":"IF(Table1[[#This Row],[Item]]=\"\",\"\",VLOOKUP(Table1[[#This Row],[Item]],Cylinders!A:B,2,FALSE))","v":3600},{"$f":"IF(Table1[[#This Row],[Cyl Cap (Ltr)]]=\"\",\"\",Table1[[#This Row],[Cyl Cap (Ltr)]]*Table1[[#This Row],[Quantity]])","v":0},{"$f":"IF(IF(Table1[[#This Row],[Action]]=\"Issue\",Table1[[#This Row],[Quantity]]*-1,Table1[[#This Row],[Quantity]])=0,IF(Table1[[#This Row],[Quantity]]<>\"\",0,\"\"),IF(Table1[[#This Row],[Action]]=\"Issue\",Table1[[#This Row],[Quantity]]*-1,Table1[[#This Row],[Quantity]]))","v":0},{"$f":"IF(Table1[[#This Row],[Cyl Cap (Ltr)]]=\"\",\"\",Table1[[#This Row],[Cyl Cap (Ltr)]]*Table1[[#This Row],[Stock Move]])","v":0},{"$f":"IF(Table1[[#This Row],[Action]]=\"Issue\",Table1[[#This Row],[Quantity]],0)","v":0},{"$f":"SUMIF(D:D,Table1[[#This Row],[Item]],I:I)","v":0},{"$f":"IF(Table1[[#This Row],[Item]]=\"\",\"\",VLOOKUP(Table1[[#This Row],[Item]],Cylinders!A:D,4,FALSE))","v":"Nitrous Oxide"}]
["2020-04-22",{"$f":"IF(Table1[[#This Row],[Date]]=\"\",\"\",Table1[[#This Row],[Date]]-WEEKDAY(Table1[[#This Row],[Date]],2)+1)","v":"2020-04-20"},"Opening Stock","Nitrous G","Stock",0,{"$f":"IF(Table1[[#This Row],[Item]]=\"\",\"\",VLOOKUP(Table1[[#This Row],[Item]],Cylinders!A:B,2,FALSE))","v":9000},{"$f":"IF(Table1[[#This Row],[Cyl Cap (Ltr)]]=\"\",\"\",Table1[[#This Row],[Cyl Cap (Ltr)]]*Table1[[#This Row],[Quantity]])","v":0},{"$f":"IF(IF(Table1[[#This Row],[Action]]=\"Issue\",Table1[[#This Row],[Quantity]]*-1,Table1[[#This Row],[Quantity]])=0,IF(Table1[[#This Row],[Quantity]]<>\"\",0,\"\"),IF(Table1[[#This Row],[Action]]=\"Issue\",Table1[[#This Row],[Quantity]]*-1,Table1[[#This Row],[Quantity]]))","v":0},{"$f":"IF(Table1[[#This Row],[Cyl Cap (Ltr)]]=\"\",\"\",Table1[[#This Row],[Cyl Cap (Ltr)]]*Table1[[#This Row],[Stock Move]])","v":0},{"$f":"IF(Table1[[#This Row],[Action]]=\"Issue\",Table1[[#This Row],[Quantity]],0)","v":0},{"$f":"SUMIF(D:D,Table1[[#This Row],[Item]],I:I)","v":0},{"$f":"IF(Table1[[#This Row],[Item]]=\"\",\"\",VLOOKUP(Table1[[#This Row],[Item]],Cylinders!A:D,4,FALSE))","v":"Nitrous Oxide"}]
["2020-04-22",{"$f":"IF(Table1[[#This Row],[Date]]=\"\",\"\",Table1[[#This Row],[Date]]-WEEKDAY(Table1[[#This Row],[Date]],2)+1)","v":"2020-04-20"},"Opening Stock","Helium F","Stock",0,{"$f":"IF(Table1[[#This Row],[Item]]=\"\",\"\",VLOOKUP(Table1[[#This Row],[Item]],Cylinders!A:B,2,FALSE))","v":1200},{"$f":"IF(Table1[[#This Row],[Cyl Cap (Ltr)]]=\"\",\"\",Table1[[#This Row],[Cyl Cap (Ltr)]]*Table1[[#This Row],[Quantity]])","v":0},{"$f":"IF(IF(Table1[[#This Row],[Action]]=\"Issue\",Table1[[#This Row],[Quantity]]*-1,Table1[[#This Row],[Quantity]])=0,IF(Table1[[#This Row],[Quantity]]<>\"\",0,\"\"),IF(Table1[[#This Row],[Action]]=\"Issue\",Table1[[#This Row],[Quantity]]*-1,Table1[[#This Row],[Quantity]]))","v":0},{"$f":"IF(Table1[[#This Row],[Cyl Cap (Ltr)]]=\"\",\"\",Table1[[#This Row],[Cyl Cap (Ltr)]]*Table1[[#This Row],[Stock Move]])","v":0},{"$f":"IF(Table1[[#This Row],[Action]]=\"Issue\",Table1[[#This Row],[Quantity]],0)","v":0},{"$f":"SUMIF(D:D,Table1[[#This Row],[Item]],I:I)","v":0},{"$f":"IF(Table1[[#This Row],[Item]]=\"\",\"\",VLOOKUP(Table1[[#This Row],[Item]],Cylinders!A:D,4,FALSE))","v":"Helium"}]
["2020-04-22",{"$f":"IF(Table1[[#This Row],[Date]]=\"\",\"\",Table1[[#This Row],[Date]]-WEEKDAY(Table1[[#This Row],[Date]],2)+1)","v":"2020-04-20"},"Opening Stock","Oxy D","Stock",0,{"$f":"IF(Table1[[#This Row],[Item]]=\"\",\"\",VLOOKUP(Table1[[#This Row],[Item]],Cylinders!A:B,2,FALSE))","v":340},{"$f":"IF(Table1[[#This Row],[Cyl Cap (Ltr)]]=\"\",\"\",Table1[[#This Row],[Cyl Cap (Ltr)]]*Table1[[#This Row],[Quantity]])","v":0},{"$f":"IF(IF(Table1[[#This Row],[Action]]=\"Issue\",Table1[[#This Row],[Quantity]]*-1,Table1[[#This Row],[Quantity]])=0,IF(Table1[[#This Row],[Quantity]]<>\"\",0,\"\"),IF(Table1[[#This Row],[Action]]=\"Issue\",Table1[[#This Row],[Quantity]]*-1,Table1[[#This Row],[Quantity]]))","v":0},{"$f":"IF(Table1[[#This Row],[Cyl Cap (Ltr)]]=\"\",\"\",Table1[[#This Row],[Cyl Cap (Ltr)]]*Table1[[#This Row],[Stock Move]])","v":0},{"$f":"IF(Table1[[#This Row],[Action]]=\"Issue\",Table1[[#This Row],[Quantity]],0)","v":0},{"$f":"SUMIF(D:D,Table1[[#This Row],[Item]],I:I)","v":0},{"$f":"IF(Table1[[#This Row],[Item]]=\"\",\"\",VLOOKUP(Table1[[#This Row],[Item]],Cylinders!A:D,4,FALSE))","v":"Oxygen"}]
["2020-04-22",{"$f":"IF(Table1[[#This Row],[Date]]=\"\",\"\",Table1[[#This Row],[Date]]-WEEKDAY(Table1[[#This Row],[Date]],2)+1)","v":"2020-04-20"},"Opening Stock","Oxy J","Stock",0,{"$f":"IF(Table1[[#This Row],[Item]]=\"\",\"\",VLOOKUP(Table1[[#This Row],[Item]],Cylinders!A:B,2,FALSE))","v":6800},{"$f":"IF(Table1[[#This Row],[Cyl Cap (Ltr)]]=\"\",\"\",Table1[[#This Row],[Cyl Cap (Ltr)]]*Table1[[#This Row],[Quantity]])","v":0},{"$f":"IF(IF(Table1[[#This Row],[Action]]=\"Issue\",Table1[[#This Row],[Quantity]]*-1,Table1[[#This Row],[Quantity]])=0,IF(Table1[[#This Row],[Quantity]]<>\"\",0,\"\"),IF(Table1[[#This Row],[Action]]=\"Issue\",Table1[[#This Row],[Quantity]]*-1,Table1[[#This Row],[Quantity]]))","v":0},{"$f":"IF(Table1[[#This Row],[Cyl Cap (Ltr)]]=\"\",\"\",Table1[[#This Row],[Cyl Cap (Ltr)]]*Table1[[#This Row],[Stock Move]])","v":0},{"$f":"IF(Table1[[#This Row],[Action]]=\"Issue\",Table1[[#This Row],[Quantity]],0)","v":0},{"$f":"SUMIF(D:D,Table1[[#This Row],[Item]],I:I)","v":0},{"$f":"IF(Table1[[#This Row],[Item]]=\"\",\"\",VLOOKUP(Table1[[#This Row],[Item]],Cylinders!A:D,4,FALSE))","v":"Oxygen"}]
["2020-04-22",{"$f":"IF(Table1[[#This Row],[Date]]=\"\",\"\",Table1[[#This Row],[Date]]-WEEKDAY(Table1[[#This Row],[Date]],2)+1)","v":"2020-04-20"},"Opening Stock","CO2 VF","Stock",0,{"$f":"IF(Table1[[#This Row],[Item]]=\"\",\"\",VLOOKUP(Table1[[#This Row],[Item]],Cylinders!A:B,2,FALSE))","v":3600},{"$f":"IF(Table1[[#This Row],[Cyl Cap (Ltr)]]=\"\",\"\",Table1[[#This Row],[Cyl Cap (Ltr)]]*Table1[[#This Row],[Quantity]])","v":0},{"$f":"IF(IF(Table1[[#This Row],[Action]]=\"Issue\",Table1[[#This Row],[Quantity]]*-1,Table1[[#This Row],[Quantity]])=0,IF(Table1[[#This Row],[Quantity]]<>\"\",0,\"\"),IF(Table1[[#This Row],[Action]]=\"Issue\",Table1[[#This Row],[Quantity]]*-1,Table1[[#This Row],[Quantity]]))","v":0},{"$f":"IF(Table1[[#This Row],[Cyl Cap (Ltr)]]=\"\",\"\",Table1[[#This Row],[Cyl Cap (Ltr)]]*Table1[[#This Row],[Stock Move]])","v":0},{"$f":"IF(Table1[[#This Row],[Action]]=\"Issue\",Table1[[#This Row],[Quantity]],0)","v":0},{"$f":"SUMIF(D:D,Table1[[#This Row],[Item]],I:I)","v":0},{"$f":"IF(Table1[[#This Row],[Item]]=\"\",\"\",VLOOKUP(Table1[[#This Row],[Item]],Cylinders!A:D,4,FALSE))","v":"CO2"}]
["2020-04-22",{"$f":"IF(Table1[[#This Row],[Date]]=\"\",\"\",Table1[[#This Row],[Date]]-WEEKDAY(Table1[[#This Row],[Date]],2)+1)","v":"2020-04-20"},"Opening Stock","Equinox AD","Stock",0,{"$f":"IF(Table1[[#This Row],[Item]]=\"\",\"\",VLOOKUP(Table1[[#This Row],[Item]],Cylinders!A:B,2,FALSE))","v":420},{"$f":"IF(Table1[[#This Row],[Cyl Cap (Ltr)]]=\"\",\"\",Table1[[#This Row],[Cyl Cap (Ltr)]]*Table1[[#This Row],[Quantity]])","v":0},{"$f":"IF(IF(Table1[[#This Row],[Action]]=\"Issue\",Table1[[#This Row],[Quantity]]*-1,Table1[[#This Row],[Quantity]])=0,IF(Table1[[#This Row],[Quantity]]<>\"\",0,\"\"),IF(Table1[[#This Row],[Action]]=\"Issue\",Table1[[#This Row],[Quantity]]*-1,Table1[[#This Row],[Quantity]]))","v":0},{"$f":"IF(Table1[[#This Row],[Cyl Cap (Ltr)]]=\"\",\"\",Table1[[#This Row],[Cyl Cap (Ltr)]]*Table1[[#This Row],[Stock Move]])","v":0},{"$f":"IF(Table1[[#This Row],[Action]]=\"Issue\",Table1[[#This Row],[Quantity]],0)","v":0},{"$f":"SUMIF(D:D,Table1[[#This Row],[Item]],I:I)","v":0},{"$f":"IF(Table1[[#This Row],[Item]]=\"\",\"\",VLOOKUP(Table1[[#This Row],[Item]],Cylinders!A:D,4,FALSE))","v":"Entonox"}]
["2020-04-22",{"$f":"IF(Table1[[#This Row],[Date]]=\"\",\"\",Table1[[#This Row],[Date]]-WEEKDAY(Table1[[#This Row],[Date]],2)+1)","v":"2020-04-20"},"Opening Stock","Equinox ED","Stock",0,{"$f":"IF(Table1[[#This Row],[Item]]=\"\",\"\",VLOOKUP(Table1[[#This Row],[Item]],Cylinders!A:B,2,FALSE))","v":700},{"$f":"IF(Table1[[#This Row],[Cyl Cap (Ltr)]]=\"\",\"\",Table1[[#This Row],[Cyl Cap (Ltr)]]*Table1[[#This Row],[Quantity]])","v":0},{"$f":"IF(IF(Table1[[#This Row],[Action]]=\"Issue\",Table1[[#This Row],[Quantity]]*-1,Table1[[#This Row],[Quantity]])=0,IF(Table1[[#This Row],[Quantity]]<>\"\",0,\"\"),IF(Table1[[#This Row],[Action]]=\"Issue\",Table1[[#This Row],[Quantity]]*-1,Table1[[#This Row],[Quantity]]))","v":0},{"$f":"IF(Table1[[#This Row],[Cyl Cap (Ltr)]]=\"\",\"\",Table1[[#This Row],[Cyl Cap (Ltr)]]*Table1[[#This Row],[Stock Move]])","v":0},{"$f":"IF(Table1[[#This Row],[Action]]=\"Issue\",Table1[[#This Row],[Quantity]],0)","v":0},{"$f":"SUMIF(D:D,Table1[[#This Row],[Item]],I:I)","v":0},{"$f":"IF(Table1[[#This Row],[Item]]=\"\",\"\",VLOOKUP(Table1[[#This Row],[Item]],Cylinders!A:D,4,FALSE))","v":"Entonox"}]
["2020-04-22",{"$f":"IF(Table1[[#This Row],[Date]]=\"\",\"\",Table1[[#This Row],[Date]]-WEEKDAY(Table1[[#This Row],[Date]],2)+1)","v":"2020-04-20"},"Opening Stock","Helium F","Stock",0,{"$f":"IF(Table1[[#This Row],[Item]]=\"\",\"\",VLOOKUP(Table1[[#This Row],[Item]],Cylinders!A:B,2,FALSE))","v":1200},{"$f":"IF(Table1[[#This Row],[Cyl Cap (Ltr)]]=\"\",\"\",Table1[[#This Row],[Cyl Cap (Ltr)]]*Table1[[#This Row],[Quantity]])","v":0},{"$f":"IF(IF(Table1[[#This Row],[Action]]=\"Issue\",Table1[[#This Row],[Quantity]]*-1,Table1[[#This Row],[Quantity]])=0,IF(Table1[[#This Row],[Quantity]]<>\"\",0,\"\"),IF(Table1[[#This Row],[Action]]=\"Issue\",Table1[[#This Row],[Quantity]]*-1,Table1[[#This Row],[Quantity]]))","v":0},{"$f":"IF(Table1[[#This Row],[Cyl Cap (Ltr)]]=\"\",\"\",Table1[[#This Row],[Cyl Cap (Ltr)]]*Table1[[#This Row],[Stock Move]])","v":0},{"$f":"IF(Table1[[#This Row],[Action]]=\"Issue\",Table1[[#This Row],[Quantity]],0)","v":0},{"$f":"SUMIF(D:D,Table1[[#This Row],[Item]],I:I)","v":0},{"$f":"IF(Table1[[#This Row],[Item]]=\"\",\"\",VLOOKUP(Table1[[#This Row],[Item]],Cylinders!A:D,4,FALSE))","v":"Helium"}]
["2020-04-22",{"$f":"IF(Table1[[#This Row],[Date]]=\"\",\"\",Table1[[#This Row],[Date]]-WEEKDAY(Table1[[#This Row],[Date]],2)+1)","v":"2020-04-20"},"Stock Adjust","Oxy PD4C","Stock",0,{"$f":"IF(Table1[[#This Row],[Item]]=\"\",\"\",VLOOKUP(Table1[[#This Row],[Item]],Cylinders!A:B,2,FALSE))","v":430},{"$f":"IF(Table1[[#This Row],[Cyl Cap (Ltr)]]=\"\",\"\",Table1[[#This Row],[Cyl Cap (Ltr)]]*Table1[[#This Row],[Quantity]])","v":0},{"$f":"IF(IF(Table1[[#This Row],[Action]]=\"Issue\",Table1[[#This Row],[Quantity]]*-1,Table1[[#This Row],[Quantity]])=0,IF(Table1[[#This Row],[Quantity]]<>\"\",0,\"\"),IF(Table1[[#This Row],[Action]]=\"Issue\",Table1[[#This Row],[Quantity]]*-1,Table1[[#This Row],[Quantity]]))","v":0},{"$f":"IF(Table1[[#This Row],[Cyl Cap (Ltr)]]=\"\",\"\",Table1[[#This Row],[Cyl Cap (Ltr)]]*Table1[[#This Row],[Stock Move]])","v":0},{"$f":"IF(Table1[[#This Row],[Action]]=\"Issue\",Table1[[#This Row],[Quantity]],0)","v":0},{"$f":"SUMIF(D:D,Table1[[#This Row],[Item]],I:I)","v":0},{"$f":"IF(Table1[[#This Row],[Item]]=\"\",\"\",VLOOKUP(Table1[[#This Row],[Item]],Cylinders!A:D,4,FALSE))","v":"Oxygen"}]
["2020-04-22",{"$f":"IF(Table1[[#This Row],[Date]]=\"\",\"\",Table1[[#This Row],[Date]]-WEEKDAY(Table1[[#This Row],[Date]],2)+1)","v":"2020-04-20"},"Stock Adjust","Oxy E","Stock",0,{"$f":"IF(Table1[[#This Row],[Item]]=\"\",\"\",VLOOKUP(Table1[[#This Row],[Item]],Cylinders!A:B,2,FALSE))","v":680},{"$f":"IF(Table1[[#This Row],[Cyl Cap (Ltr)]]=\"\",\"\",Table1[[#This Row],[Cyl Cap (Ltr)]]*Table1[[#This Row],[Quantity]])","v":0},{"$f":"IF(IF(Table1[[#This Row],[Action]]=\"Issue\",Table1[[#This Row],[Quantity]]*-1,Table1[[#This Row],[Quantity]])=0,IF(Table1[[#This Row],[Quantity]]<>\"\",0,\"\"),IF(Table1[[#This Row],[Action]]=\"Issue\",Table1[[#This Row],[Quantity]]*-1,Table1[[#This Row],[Quantity]]))","v":0},{"$f":"IF(Table1[[#This Row],[Cyl Cap (Ltr)]]=\"\",\"\",Table1[[#This Row],[Cyl Cap (Ltr)]]*Table1[[#This Row],[Stock Move]])","v":0},{"$f":"IF(Table1[[#This Row],[Action]]=\"Issue\",Table1[[#This Row],[Quantity]],0)","v":0},{"$f":"SUMIF(D:D,Table1[[#This Row],[Item]],I:I)","v":0},{"$f":"IF(Table1[[#This Row],[Item]]=\"\",\"\",VLOOKUP(Table1[[#This Row],[Item]],Cylinders!A:D,4,FALSE))","v":"Oxygen"}]
["2020-04-22",{"$f":"IF(Table1[[#This Row],[Date]]=\"\",\"\",Table1[[#This Row],[Date]]-WEEKDAY(Table1[[#This Row],[Date]],2)+1)","v":"2020-04-20"},"Stock Adjust","Oxy F4","Stock",0,{"$f":"IF(Table1[[#This Row],[Item]]=\"\",\"\",VLOOKUP(Table1[[#This Row],[Item]],Cylinders!A:B,2,FALSE))","v":1360},{"$f":"IF(Table1[[#This Row],[Cyl Cap (Ltr)]]=\"\",\"\",Table1[[#This Row],[Cyl Cap (Ltr)]]*Table1[[#This Row],[Quantity]])","v":0},{"$f":"IF(IF(Table1[[#This Row],[Action]]=\"Issue\",Table1[[#This Row],[Quantity]]*-1,Table1[[#This Row],[Quantity]])=0,IF(Table1[[#This Row],[Quantity]]<>\"\",0,\"\"),IF(Table1[[#This Row],[Action]]=\"Issue\",Table1[[#This Row],[Quantity]]*-1,Table1[[#This Row],[Quantity]]))","v":0},{"$f":"IF(Table1[[#This Row],[Cyl Cap (Ltr)]]=\"\",\"\",Table1[[#This Row],[Cyl Cap (Ltr)]]*Table1[[#This Row],[Stock Move]])","v":0},{"$f":"IF(Table1[[#This Row],[Action]]=\"Issue\",Table1[[#This Row],[Quantity]],0)","v":0},{"$f":"SUMIF(D:D,Table1[[#This Row],[Item]],I:I)","v":0},{"$f":"IF(Table1[[#This Row],[Item]]=\"\",\"\",VLOOKUP(Table1[[#This Row],[Item]],Cylinders!A:D,4,FALSE))","v":"Oxygen"}]
["2020-04-22",{"$f":"IF(Table1[[#This Row],[Date]]=\"\",\"\",Table1[[#This Row],[Date]]-WEEKDAY(Table1[[#This Row],[Date]],2)+1)","v":"2020-04-20"},"Stock Adjust","Oxy F4C1T","Stock",0,{"$f":"IF(Table1[[#This Row],[Item]]=\"\",\"\",VLOOKUP(Table1[[#This Row],[Item]],Cylinders!A:B,2,FALSE))","v":1360},{"$f":"IF(Table1[[#This Row],[Cyl Cap (Ltr)]]=\"\",\"\",Table1[[#This Row],[Cyl Cap (Ltr)]]*Table1[[#This Row],[Quantity]])","v":0},{"$f":"IF(IF(Table1[[#This Row],[Action]]=\"Issue\",Table1[[#This Row],[Quantity]]*-1,Table1[[#This Row],[Quantity]])=0,IF(Table1[[#This Row],[Quantity]]<>\"\",0,\"\"),IF(Table1[[#This Row],[Action]]=\"Issue\",Table1[[#This Row],[Quantity]]*-1,Table1[[#This Row],[Quantity]]))","v":0},{"$f":"IF(Table1[[#This Row],[Cyl Cap (Ltr)]]=\"\",\"\",Table1[[#This Row],[Cyl Cap (Ltr)]]*Table1[[#This Row],[Stock Move]])","v":0},{"$f":"IF(Table1[[#This Row],[Action]]=\"Issue\",Table1[[#This Row],[Quantity]],0)","v":0},{"$f":"SUMIF(D:D,Table1[[#This Row],[Item]],I:I)","v":0},{"$f":"IF(Table1[[#This Row],[Item]]=\"\",\"\",VLOOKUP(Table1[[#This Row],[Item]],Cylinders!A:D,4,FALSE))","v":"Oxygen"}]
["2020-04-22",{"$f":"IF(Table1[[#This Row],[Date]]=\"\",\"\",Table1[[#This Row],[Date]]-WEEKDAY(Table1[[#This Row],[Date]],2)+1)","v":"2020-04-20"},"Stock Adjust","Oxy G","Stock",0,{"$f":"IF(Table1[[#This Row],[Item]]=\"\",\"\",VLOOKUP(Table1[[#This Row],[Item]],Cylinders!A:B,2,FALSE))","v":3400},{"$f":"IF(Table1[[#This Row],[Cyl Cap (Ltr)]]=\"\",\"\",Table1[[#This Row],[Cyl Cap (Ltr)]]*Table1[[#This Row],[Quantity]])","v":0},{"$f":"IF(IF(Table1[[#This Row],[Action]]=\"Issue\",Table1[[#This Row],[Quantity]]*-1,Table1[[#This Row],[Quantity]])=0,IF(Table1[[#This Row],[Quantity]]<>\"\",0,\"\"),IF(Table1[[#This Row],[Action]]=\"Issue\",Table1[[#This Row],[Quantity]]*-1,Table1[[#This Row],[Quantity]]))","v":0},{"$f":"IF(Table1[[#This Row],[Cyl Cap (Ltr)]]=\"\",\"\",Table1[[#This Row],[Cyl Cap (Ltr)]]*Table1[[#This Row],[Stock Move]])","v":0},{"$f":"IF(Table1[[#This Row],[Action]]=\"Issue\",Table1[[#This Row],[Quantity]],0)","v":0},{"$f":"SUMIF(D:D,Table1[[#This Row],[Item]],I:I)","v":0},{"$f":"IF(Table1[[#This Row],[Item]]=\"\",\"\",VLOOKUP(Table1[[#This Row],[Item]],Cylinders!A:D,4,FALSE))","v":"Oxygen"}]
["2020-04-22",{"$f":"IF(Table1[[#This Row],[Date]]=\"\",\"\",Table1[[#This Row],[Date]]-WEEKDAY(Table1[[#This Row],[Date]],2)+1)","v":"2020-04-20"},"Issue","Oxy PD4C","Location 1",0,{"$f":"IF(Table1[[#This Row],[Item]]=\"\",\"\",VLOOKUP(Table1[[#This Row],[Item]],Cylinders!A:B,2,FALSE))","v":430},{"$f":"IF(Table1[[#This Row],[Cyl Cap (Ltr)]]=\"\",\"\",Table1[[#This Row],[Cyl Cap (Ltr)]]*Table1[[#This Row],[Quantity]])","v":0},{"$f":"IF(IF(Table1[[#This Row],[Action]]=\"Issue\",Table1[[#This Row],[Quantity]]*-1,Table1[[#This Row],[Quantity]])=0,IF(Table1[[#This Row],[Quantity]]<>\"\",0,\"\"),IF(Table1[[#This Row],[Action]]=\"Issue\",Table1[[#This Row],[Quantity]]*-1,Table1[[#This Row],[Quantity]]))","v":0},{"$f":"IF(Table1[[#This Row],[Cyl Cap (Ltr)]]=\"\",\"\",Table1[[#This Row],[Cyl Cap (Ltr)]]*Table1[[#This Row],[Stock Move]])","v":0},{"$f":"IF(Table1[[#This Row],[Action]]=\"Issue\",Table1[[#This Row],[Quantity]],0)","v":0},{"$f":"SUMIF(D:D,Table1[[#This Row],[Item]],I:I)","v":0},{"$f":"IF(Table1[[#This Row],[Item]]=\"\",\"\",VLOOKUP(Table1[[#This Row],[Item]],Cylinders!A:D,4,FALSE))","v":"Oxygen"}]

{"sheet":"Current Stock Med Air vs Usage","index":3,"n_rows":10,"n_cols":5,"rows_kept":10,"cut":false,"hidden":true,"merged":[]}
[null,"Week Commencing","(All)"]
[null,"Action","(All)"]
[]
[null,"Row Labels","Item","Current Stock","Usage"]
[null,"Medical Air","Air SJ",0,0]
[null,null,"Air E",0,0]
[null,null,"Air J",0,0]
[null,null,"Air F",0,0]
[null,null,"Air G",0,0]
[null,"Grand Total",null,0,0]

{"sheet":"Stock","index":4,"n_rows":33,"n_cols":11,"rows_kept":33,"cut":false,"hidden":true,"merged":[]}
["Click in table and Alt-F5 to refresh",null,null,null,null,null,null,null,"Current Stock Oxygen"]
["Row Labels","Item","Current (Cyl)","Current (Ltrs)","To Order","Capacity 120",null,null,"Type","Usage","Current Stock"]
["Oxygen","Oxy PD4C",0,0,{"$f":"IF(C3=\"\",\"\",IF(F3-C3<0,0,F3-C3))","v":0},{"$f":"VLOOKUP(B3,Cylinders!A:D,3,FALSE)","v":0},null,null,"Oxy PD4C"]
[null,"Oxy E",0,0,{"$f":"IF(C4=\"\",\"\",IF(F4-C4<0,0,F4-C4))","v":0},{"$f":"VLOOKUP(B4,Cylinders!A:D,3,FALSE)","v":0},null,null,"Oxy E"]
[null,"Oxy F4",0,0,0,{"$f":"VLOOKUP(B5,Cylinders!A:D,3,FALSE)","v":0},null,null,"Oxy F4"]
[null,"Oxy F4C1T",0,0,0,{"$f":"VLOOKUP(B6,Cylinders!A:D,3,FALSE)","v":0},null,null,"Oxy F4C1T"]
[null,"Oxy G",0,0,0,{"$f":"VLOOKUP(B7,Cylinders!A:D,3,FALSE)","v":0},null,null,"Oxy G"]
[null,"Oxy SJ",0,0,0,{"$f":"VLOOKUP(B8,Cylinders!A:D,3,FALSE)","v":0},null,null,"Oxy SJ"]
[null,"Oxy CD",0,0,0,{"$f":"VLOOKUP(B9,Cylinders!A:D,3,FALSE)","v":0}]
[null,"Oxy D",0,0,0,{"$f":"VLOOKUP(B10,Cylinders!A:D,3,FALSE)","v":0}]
[null,"Oxy HX",0,0,0,{"$f":"VLOOKUP(B11,Cylinders!A:D,3,FALSE)","v":0}]
[null,"Oxy J",0,0,0,{"$f":"VLOOKUP(B12,Cylinders!A:D,3,FALSE)","v":0}]
["Medical Air","Air E",0,0,0,{"$f":"VLOOKUP(B13,Cylinders!A:D,3,FALSE)","v":0}]
[null,"Air F",0,0,0,{"$f":"VLOOKUP(B14,Cylinders!A:D,3,FALSE)","v":0}]
[null,"Air G",0,0,0,{"$f":"VLOOKUP(B15,Cylinders!A:D,3,FALSE)","v":0}]
[null,"Air SJ",0,0,0,{"$f":"VLOOKUP(B16,Cylinders!A:D,3,FALSE)","v":0}]
[null,"Air J",0,0,0,{"$f":"VLOOKUP(B17,Cylinders!A:D,3,FALSE)","v":0}]
["CO2","CO2 C",0,0,0,{"$f":"VLOOKUP(B18,Cylinders!A:D,3,FALSE)","v":0}]
[null,"CO2 E",0,0,0,{"$f":"VLOOKUP(B19,Cylinders!A:D,3,FALSE)","v":0}]
[null,"CO2 VF",0,0,0,{"$f":"VLOOKUP(B20,Cylinders!A:D,3,FALSE)","v":0}]
[null,"CO2 VK",0,0,0,{"$f":"VLOOKUP(B21,Cylinders!A:D,3,FALSE)","v":0}]
["Nitrous Oxide","Nitrous E",0,0,0,{"$f":"VLOOKUP(B22,Cylinders!A:D,3,FALSE)","v":0}]
[null,"Nitrous F",0,0,0,{"$f":"VLOOKUP(B23,Cylinders!A:D,3,FALSE)","v":0}]
[null,"Nitrous G",0,0,0,{"$f":"VLOOKUP(B24,Cylinders!A:D,3,FALSE)","v":0}]
["(blank)","(blank)",null,null,"",{"$f":"VLOOKUP(B25,Cylinders!A:D,3,FALSE)","v":{"$error":"#N/A"}}]
["Entonox","Equinox AD",0,0,0,{"$f":"VLOOKUP(B26,Cylinders!A:D,3,FALSE)","v":0}]
[null,"Equinox F",0,0,0,{"$f":"VLOOKUP(B27,Cylinders!A:D,3,FALSE)","v":0}]
[null,"Equinox G",0,0,0,{"$f":"VLOOKUP(B28,Cylinders!A:D,3,FALSE)","v":0}]
[null,"Equinox D",0,0,0,{"$f":"VLOOKUP(B29,Cylinders!A:D,3,FALSE)","v":0}]
[null,"Equinox ED",0,0,0,{"$f":"VLOOKUP(B30,Cylinders!A:D,3,FALSE)","v":0}]
[null,"Equinox EX",0,0,0,{"$f":"VLOOKUP(B31,Cylinders!A:D,3,FALSE)","v":0}]
["Helium","Helium F",0,0,0,{"$f":"VLOOKUP(B32,Cylinders!A:D,3,FALSE)","v":0}]
[null,null,null,null,"",{"$f":"VLOOKUP(B33,Cylinders!A:D,3,FALSE)","v":{"$error":"#N/A"}}]

{"sheet":"Stock Use Per Location","index":5,"n_rows":7,"n_cols":15,"rows_kept":7,"cut":false,"hidden":true,"merged":[]}
["Week Commencing","2020-04-20",null,null,null,null,null,null,null,null,"Date ","Location","Cylinder Type","Issued","Qty Received"]
["Action","(All)"]
[]
["Sum of Total Cap (Ltr)","Column Labels"]
["Locations","Oxygen","Grand Total"]
["Location 1",0,0]
["Grand Total",0,0]

{"sheet":"Stock Check to Order","index":6,"n_rows":31,"n_cols":1,"rows_kept":31,"cut":false,"hidden":true,"merged":[]}
["Row Labels"]
["Oxy G"]
["Oxy PD4C"]
["Oxy E"]
["Oxy F4"]
["Oxy F4C1T"]
["Oxy SJ"]
["Air E"]
["Air F"]
["Air G"]
["Air SJ"]
["CO2 C"]
["CO2 E"]
["Equinox AD"]
["Equinox F"]
["Equinox G"]
["Nitrous E"]
["Nitrous F"]
["Nitrous G"]
["Oxy D"]
["Oxy CD"]
["Oxy HX"]
["Air J"]
["CO2 VF"]
["CO2 VK"]
["Equinox D"]
["Equinox ED"]
["Equinox EX"]
["Helium F"]
["Oxy J"]
["Grand Total"]

{"sheet":"Cylinders","index":7,"n_rows":31,"n_cols":7,"rows_kept":31,"cut":false,"hidden":true,"merged":[]}
["Cylinder","Capacity","Capacity 120","GasType"]
["Oxy PD4C",430,0,"Oxygen",null,null,"Oxygen"]
["Oxy E",680,0,"Oxygen",null,null,"Medical Air"]
["Oxy F4",1360,0,"Oxygen",null,null,"CO2"]
["Oxy F4C1T",1360,0,"Oxygen",null,null,"Entonox"]
["Oxy G",3400,0,"Oxygen",null,null,"Nitrous Oxide"]
["Oxy SJ",7300,0,"Oxygen",null,null,"Helium"]
["Air E",640,0,"Medical Air"]
["Air F",1280,0,"Medical Air"]
["Air G",3200,0,"Medical Air"]
["Air SJ",6800,0,"Medical Air"]
["CO2 C",450,0,"CO2"]
["CO2 E",1800,0,"CO2"]
["Equinox AD",420,0,"Entonox"]
["Equinox F",2000,0,"Entonox"]
["Equinox G",5000,0,"Entonox"]
["Nitrous E",1800,0,"Nitrous Oxide"]
["Nitrous F",3600,0,"Nitrous Oxide"]
["Nitrous G",9000,0,"Nitrous Oxide"]
["Helium F",1200,0,"Helium"]
["Oxy D",340,0,"Oxygen"]
["Oxy CD",460,0,"Oxygen"]
["Oxy HX",2300,0,"Oxygen"]
["Oxy J",6800,0,"Oxygen"]
["Air J",6400,0,"Medical Air"]
["CO2 VF",3600,0,"CO2"]
["CO2 VK",3600,0,"CO2"]
["Equinox D",500,0,"Entonox"]
["Equinox ED",700,0,"Entonox"]
["Equinox EX",3500,0,"Entonox"]
["Equinox EX",3500,0,"Entonox"]

{"sheet":"Locations","index":8,"n_rows":9,"n_cols":1,"rows_kept":9,"cut":false,"hidden":true,"merged":[]}
["Locations"]
["Stock"]
["Location 1"]
["Location 2"]
["Location 3"]
["Location 4"]
["Location 5"]
["Location 6"]
["Location 7"]

{"sheet":"Current Stock Oxygen vs Usage","index":9,"n_rows":15,"n_cols":5,"rows_kept":15,"cut":false,"hidden":true,"merged":[]}
[null,"Week Commencing","(All)"]
[null,"Action","(All)"]
[]
[null,"Row Labels","Item","Current Stock","Usage"]
[null,"Oxygen","Oxy D",0,0]
[null,null,"Oxy SJ",0,0]
[null,null,"Oxy J",0,0]
[null,null,"Oxy F4",0,0]
[null,null,"Oxy CD",0,0]
[null,null,"Oxy F4C1T",0,0]
[null,null,"Oxy HX",0,0]
[null,null,"Oxy G",0,0]
[null,null,"Oxy E",0,0]
[null,null,"Oxy PD4C",0,0]
[null,"Grand Total",null,0,0]

{"sheet":"Stock Audit","index":10,"n_rows":99,"n_cols":8,"rows_kept":99,"cut":false,"hidden":true,"merged":[]}
["Item","Current (Cyl)",null,null,"Item","Current (Cyl)","Current (Cyl)","Difference"]
["Oxy PD4C",4,null,null,"Oxy PD4C",0,-41,{"$f":"B2-F2","v":4}]
["Oxy E",4,null,null,"Oxy E",0,-31,{"$f":"B3-F3","v":4}]
["Oxy F4",4,null,null,"Oxy F4",0,-35,4]
["Oxy F4C1T",4,null,null,"Oxy F4C1T",0,-40,4]
["Oxy G",4,null,null,"Oxy G",0,-24,4]
["Oxy SJ",0,null,null,"Oxy SJ",0,-17,0]
["Oxy CD",0,null,null,"Oxy CD",0,-125,0]
["Oxy D",0,null,null,"Oxy D",0,-10,0]
["Oxy HX",0,null,null,"Oxy HX",0,-6,0]
["Oxy J",0,null,null,"Oxy J",0,-14,0]
["Air E",0,null,null,"Air E",0,-46,0]
["Air F",0,null,null,"Air F",0,-39,0]
["Air G",0,null,null,"Air G",0,-45,0]
["Air SJ",0,null,null,"Air SJ",0,-15,0]
["Air J",0,null,null,"Air J",0,null,0]
["CO2 C",0,null,null,"CO2 C",0,null,0]
["CO2 E",0,null,null,"CO2 E",0,null,0]
["CO2 VF",0,null,null,"CO2 VF",0,null,0]
["CO2 VK",0,null,null,"CO2 VK",0,null,0]
["Nitrous E",0,null,null,"Nitrous E",0,null,0]
["Nitrous F",0,null,null,"Nitrous F",0,null,0]
["Nitrous G",0,null,null,"Nitrous G",0,null,0]
["(blank)",null,null,null,"(blank)",null,null,0]
["Equinox AD",0,null,null,"Equinox AD",0,null,0]
["Equinox F",0,null,null,"Equinox F",0,null,0]
["Equinox G",0,null,null,"Equinox G",0,null,0]
["Equinox D",0,null,null,"Equinox D",0,null,0]
["Equinox ED",0,null,null,"Equinox ED",0,null,0]
["Equinox EX",0,null,null,"Equinox EX",0,null,0]
["Helium F",0,null,null,"Helium F",0,null,0]
[null,null,null,null,null,null,null,0]
[null,null,null,null,null,null,null,0]
[null,null,null,null,null,null,null,0]
[null,null,null,null,null,null,null,0]
[null,null,null,null,null,null,null,0]
[null,null,null,null,null,null,null,0]
[null,null,null,null,null,null,null,0]
[null,null,null,null,null,null,null,0]
[null,null,null,null,null,null,null,0]
[null,null,null,null,null,null,null,0]
[null,null,null,null,null,null,null,0]
[null,null,null,null,null,null,null,0]
[null,null,null,null,null,null,null,0]
[null,null,null,null,null,null,null,0]
[null,null,null,null,null,null,null,0]
[null,null,null,null,null,null,null,0]
[null,null,null,null,null,null,null,0]
[null,null,null,null,null,null,null,0]
[null,null,null,null,null,null,null,0]
[null,null,null,null,null,null,null,0]
[null,null,null,null,null,null,null,0]
[null,null,null,null,null,null,null,0]
[null,null,null,null,null,null,null,0]
[null,null,null,null,null,null,null,0]
[null,null,null,null,null,null,null,0]
[null,null,null,null,null,null,null,0]
[null,null,null,null,null,null,null,0]
[null,null,null,null,null,null,null,0]
[null,null,null,null,null,null,null,0]
[null,null,null,null,null,null,null,0]
[null,null,null,null,null,null,null,0]
[null,null,null,null,null,null,null,0]
[null,null,null,null,null,null,null,0]
[null,null,null,null,null,null,null,0]
[null,null,null,null,null,null,null,0]
[null,null,null,null,null,null,null,{"$f":"B67-F67","v":0}]
[null,null,null,null,null,null,null,0]
[null,null,null,null,null,null,null,0]
[null,null,null,null,null,null,null,0]
[null,null,null,null,null,null,null,0]
[null,null,null,null,null,null,null,0]
[null,null,null,null,null,null,null,0]
[null,null,null,null,null,null,null,0]
[null,null,null,null,null,null,null,0]
[null,null,null,null,null,null,null,0]
[null,null,null,null,null,null,null,0]
[null,null,null,null,null,null,null,0]
[null,null,null,null,null,null,null,0]
[null,null,null,null,null,null,null,0]
[null,null,null,null,null,null,null,0]
[null,null,null,null,null,null,null,0]
[null,null,null,null,null,null,null,0]
[null,null,null,null,null,null,null,0]
[null,null,null,null,null,null,null,0]
[null,null,null,null,null,null,null,0]
[null,null,null,null,null,null,null,0]
[null,null,null,null,null,null,null,0]
[null,null,null,null,null,null,null,0]
[null,null,null,null,null,null,null,0]
[null,null,null,null,null,null,null,0]
[null,null,null,null,null,null,null,0]
[null,null,null,null,null,null,null,0]
[null,null,null,null,null,null,null,0]
[null,null,null,null,null,null,null,0]
[null,null,null,null,null,null,null,0]
[null,null,null,null,null,null,null,0]
[null,null,null,null,null,null,null,0]
[null,null,null,null,null,null,null,0]